bitfinex/quotes_ETHUSD_20250130
["timestamp","ask_amount","ask_price","bid_price","bid_amount"]
[1738248483536,3.06258,3265.3,3265.1,2.86837024]
[1738248483758,0.62587603,3265.7,3265.2,0.55]
[1738248483909,3.06247,3265.4,3265.2,0.55]
[1738248484119,3.0625,3265.3,3265.2,0.55]
[1738248484564,3.06231,3265.5,3265.2,0.55]
[1738248484762,3.06213,3265.7,3265.2,0.55]
[1738248484963,3.06213,3265.7,3265.2,0.58062326]
[1738248485169,3.38223526,3265.9,3265.2,0.58062326]
[1738248485170,3.06204,3265.8,3265.4,2.86837024]
[1738248485474,0.32028526,3265.9,3265.1,2.86837024]
[1738248485623,3.06192,3266.0,3264.9,0.7914]
[1738248485822,3.06278,3265.0,3264.9,0.7914]
[1738248486060,3.06303,3264.8,3264.6,0.7666]
[1738248486255,3.06303,3264.8,3263.8,3.06389]
[1738248486256,3.06306,3264.7,3264.3,0.7666]
[1738248486425,3.06333,3264.5,3264.3,0.7666]
[1738248486763,3.87269,3265.5,3264.2,2.86837024]
[1738248486764,3.06335,3264.4,3264.2,2.86837024]
[1738248486963,3.06313,3264.7,3264.3,0.8113]
[1738248487170,3.06313,3264.7,3264.6,2.86837024]
[1738248487466,3.06325,3264.5,3264.4,0.55]
[1738248487624,3.06363,3264.1,3264.0,2.86837024]
[1738248488575,3.06391,3263.8,3263.6,0.8113]
[1738248488723,3.064,3263.7,3263.6,0.8113]
[1738248488931,3.064,3263.7,3263.6,1.3613]
[1738248489340,3.064,3263.7,3263.6,0.8113]
[1738248490039,3.06382,3263.9,3263.7,0.55]
[1738248490238,3.06366,3264.1,3263.8,3.46231351]
[1738248490433,3.06379,3264.0,3263.8,3.46231351]
[1738248490650,3.06366,3264.1,3263.8,3.46231351]
[1738248490651,3.06381,3263.9,3263.8,4.01231351]
[1738248490862,3.06381,3263.9,3263.8,0.55]
[1738248492987,0.8029,3264.4,3263.4,3.46231351]
[1738248493171,3.06428,3263.4,3263.3,0.7784]
[1738248493687,3.06391,3263.9,3263.4,0.55]
[1738248493840,3.06366,3264.1,3263.6,0.55]
[1738248494039,3.06362,3264.2,3263.9,0.55]
[1738248494483,3.06341,3264.4,3263.9,0.55]
[1738248494785,3.06349,3264.3,3264.1,0.55]
[1738248494972,3.06353,3264.2,3264.1,0.55]
[1738248495298,0.60960651,3265.0,3264.1,0.55]
[1738248495299,0.3201975,3266.0,3264.4,9.19005]
[1738248495459,0.3201975,3266.0,3265.9,7.02731351]
[1738248495791,0.7876,3266.9,3265.6,0.8173]
[1738248495944,3.06163,3266.3,3265.6,0.8173]
[1738248496140,3.06213,3265.7,3265.6,0.8173]
[1738248496389,0.7876,3266.1,3265.2,0.8173]
[1738248496589,0.7876,3266.1,3264.7,3.46231351]
[1738248496743,3.06229,3265.6,3264.7,7.34264351]
[1738248496945,3.06184,3266.0,3264.8,3.55]
[1738248497145,3.06255,3265.3,3264.8,0.55]
[1738248497481,3.06269,3265.1,3264.8,0.55]
[1738248497665,3.0625,3265.3,3264.4,6.06332]
[1738248497666,0.7706,3265.6,3264.4,3.0]
[1738248497986,1.155544,3265.9,3264.9,0.7513]
[1738248498188,0.7706,3265.9,3264.6,3.0]
[1738248498344,3.0628,3265.0,3264.5,0.7513]
[1738248498539,3.06277,3265.1,3264.6,0.55]
[1738248498742,3.06292,3264.9,3264.6,0.55]
[1738248498945,3.06292,3264.9,3264.5,0.55]
[1738248499239,3.06297,3264.8,3264.4,3.46231351]
[1738248499740,0.7706,3265.1,3264.4,3.46231351]
[1738248499741,3.06279,3265.0,3264.4,3.46231351]
[1738248500067,0.383339,3265.0,3264.5,0.55]
[1738248500252,3.06324,3264.6,3264.1,3.46231351]
[1738248500466,3.06342,3264.4,3263.8,3.46231351]
[1738248500651,3.06342,3264.4,3263.9,3.0]
[1738248500850,3.06298,3264.8,3264.2,0.55]
[1738248501100,3.06309,3264.7,3264.2,0.55]
[1738248501295,3.06298,3264.8,3264.2,0.55]
[1738248501978,3.06298,3264.8,3264.2,0.77776742]
[1738248501979,3.06315,3264.7,3264.2,0.77776742]
[1738248502150,3.06324,3264.6,3264.2,0.77776742]
[1738248502554,3.06324,3264.6,3264.2,0.22776742]
[1738248502555,3.06341,3264.4,3264.2,0.22776742]
[1738248502754,3.0632,3264.6,3264.2,0.22776742]
[1738248503153,3.06326,3264.5,3264.0,0.55]
[1738248503679,3.06341,3264.4,3264.0,0.55]
[1738248504102,0.612576,3264.8,3264.0,0.55]
[1738248504288,3.06343,3264.4,3263.9,0.55]
[1738248504614,3.06316,3264.6,3263.9,3.6138]
[1738248504755,3.06286,3265.0,3264.5,0.55]
[1738248505101,3.06269,3265.1,3264.5,4.39564]
[1738248505300,3.06253,3265.3,3264.7,3.06306]
[1738248505453,3.06262,3265.2,3264.5,1.3324]
[1738248505656,3.0627,3265.1,3264.6,0.55]
[1738248506810,3.06262,3265.2,3264.6,0.55]
[1738248506811,3.0626,3265.2,3264.6,3.61314]
[1738248506956,3.06241,3265.4,3264.9,0.55]
[1738248507300,0.8228,3265.5,3264.5,3.7824]
[1738248507457,3.0628,3265.0,3264.6,0.55]
[1738248507884,3.0625,3265.3,3264.6,0.55]
[1738248508386,3.06255,3265.3,3264.7,3.06305]
[1738248508595,3.06255,3265.3,3264.8,0.55]
[1738248509199,3.06303,3264.8,3264.1,3.06355]
[1738248509424,3.06279,3265.0,3264.3,0.55]
[1738248509634,3.06289,3264.9,3264.3,0.55]
[1738248510002,3.06299,3264.8,3264.2,0.3073]
[1738248510212,3.06279,3265.0,3264.3,0.55]
[1738248510435,3.06279,3265.0,3264.3,0.8573]
[1738248510734,3.06299,3264.8,3264.4,0.8289]
[1738248511035,3.06288,3264.9,3264.4,0.8289]
[1738248511526,3.06318,3264.6,3264.1,1.0869]
[1738248511888,3.06296,3264.9,3264.2,3.61352]
[1738248512090,3.88518,3265.5,3264.8,3.46231351]
[1738248512091,0.8228,3265.5,3264.8,3.46231351]
[1738248512343,0.8228,3265.5,3264.8,3.49293915]
[1738248512344,3.06248,3265.4,3264.8,3.49293915]
[1738248512541,3.06284,3265.0,3264.4,6.52560351]
[1738248512704,3.06284,3265.0,3264.4,4.11487386]
[1738248512913,3.06303,3264.8,3264.5,0.55]
[1738248513116,3.06316,3264.6,3264.2,0.3073]
[1738248513321,3.06341,3264.4,3264.2,0.3073]
[1738248513631,3.06344,3264.3,3264.2,0.3073]
[1738248513818,3.06357,3264.2,3264.0,3.46231351]
[1738248514443,0.7527,3264.7,3264.1,0.55]
[1738248514746,0.7527,3264.7,3263.6,4.12762135]
[1738248514747,3.06316,3264.6,3263.6,3.46231351]
[1738248515043,3.06369,3264.1,3263.6,3.46231351]
[1738248515341,3.06369,3264.1,3263.5,3.90787837]
[1738248515342,3.06336,3264.4,3263.9,3.46231351]
[1738248515606,3.06336,3264.4,3264.0,0.55]
[1738248516261,3.06344,3264.3,3264.0,0.55]
[1738248516493,3.06326,3264.5,3264.0,0.55]
[1738248516694,3.06327,3264.5,3264.0,0.55]
[1738248517076,3.06351,3264.3,3264.0,0.55]
[1738248517392,3.06354,3264.2,3264.0,0.7783342]
[1738248517698,3.06363,3264.1,3264.0,0.7783342]
[1738248518200,3.06343,3264.4,3264.0,0.7783342]
[1738248518363,3.06317,3264.6,3264.0,0.7783342]
[1738248518556,3.06322,3264.6,3264.0,1.5926342]
[1738248518760,3.06326,3264.5,3264.0,1.3643]
[1738248519278,3.06335,3264.4,3264.0,1.3643]
[1738248519676,3.84522,3265.0,3264.0,1.3643]
[1738248519677,3.06352,3264.3,3264.0,0.55]
[1738248519915,0.7824,3265.0,3264.0,0.55]
[1738248519916,0.7824,3265.0,3264.0,4.72084486]
[1738248520067,0.1,3266.2,3264.0,4.72084486]
[1738248520068,3.06266,3265.2,3264.8,0.55]
[1738248520401,3.06271,3265.1,3264.8,0.55]
[1738248521015,3.87402,3265.3,3264.8,0.55]
[1738248521016,3.06263,3265.2,3264.8,0.55]
[1738248521317,3.06279,3265.0,3264.8,0.55]
[1738248521522,3.06288,3264.9,3264.5,0.55]
[1738248521712,3.06273,3265.1,3264.5,0.55]
[1738248521918,3.06286,3265.0,3264.5,0.55]
[1738248522715,3.06304,3264.8,3264.5,0.55]
[1738248523318,3.06312,3264.7,3264.5,0.55]
[1738248523619,3.06304,3264.8,3264.5,0.55]
[1738248523923,3.06304,3264.8,3264.1,3.83065]
[1738248523924,3.06322,3264.6,3264.1,0.7671]
[1738248524079,3.06322,3264.6,3264.2,0.55]
[1738248524281,3.0631,3264.7,3264.2,0.55]
[1738248524483,3.06323,3264.6,3264.2,0.55]
[1738248525039,0.61466025,3265.2,3264.4,0.55]
[1738248525320,3.87406,3265.3,3264.9,3.46027646]
[1738248525469,3.06256,3265.3,3264.9,3.46027646]
[1738248525672,0.7535,3265.7,3265.2,3.06253]
[1738248525869,3.06213,3265.7,3265.0,3.40873765]
[1738248526074,1.36509492,3266.0,3264.9,0.3073]
[1738248526075,3.06253,3265.3,3264.9,0.3073]
[1738248526272,3.06253,3265.3,3264.6,3.8174]
[1738248526515,3.06253,3265.3,3264.7,0.55]
[1738248526684,3.06253,3265.3,3264.7,3.92036]
[1738248527122,3.06253,3265.3,3264.7,0.8573]
[1738248527429,0.7865,3265.4,3264.9,0.55]
[1738248527579,3.849,3265.4,3264.9,0.55]
[1738248527989,3.0625,3265.4,3264.9,0.55]
[1738248528623,3.06257,3265.3,3264.9,0.55]
[1738248529006,3.44648,3265.4,3264.9,0.55]
[1738248529197,3.0625,3265.4,3264.9,0.55]
[1738248529722,3.0625,3265.4,3265.1,0.55]
[1738248530926,3.0625,3265.4,3264.9,0.55]
[1738248531909,3.0625,3265.4,3264.7,0.55]
[1738248532092,3.0625,3265.4,3264.7,3.613]
[1738248532296,3.0625,3265.4,3264.7,0.55]
[1738248532498,3.06252,3265.3,3264.9,0.55]
[1738248532889,3.06278,3265.0,3264.9,0.55]
[1738248533306,3.06271,3265.1,3264.9,0.55]
[1738248533826,3.06271,3265.1,3264.8,0.55]
[1738248534127,3.0628,3265.0,3264.7,0.22841557]
[1738248535036,3.06274,3265.1,3264.7,0.22841557]
[1738248535336,3.06274,3265.1,3264.7,0.55]
[1738248535790,0.61494039,3265.5,3264.7,0.55]
[1738248535996,3.06256,3265.3,3264.9,0.55]
[1738248536738,3.0626,3265.2,3264.9,0.55]
[1738248536933,3.06261,3265.2,3264.9,0.55]
[1738248537138,3.06278,3265.1,3264.8,0.5139515]
[1738248537504,3.06278,3265.1,3264.8,0.22841259]
[1738248538000,3.06278,3265.1,3264.7,0.22841259]
[1738248538343,3.06278,3265.1,3264.7,0.77841259]
[1738248539434,3.06278,3265.1,3264.8,0.55]
[1738248539796,3.06278,3265.1,3264.7,0.55]
[1738248539991,0.61494039,3265.5,3264.7,0.55]
[1738248540237,3.06337,3264.4,3263.8,3.87493]
[1738248540642,3.06364,3264.1,3263.8,0.8111]
[1738248540942,3.06295,3264.9,3263.9,0.03063756]
[1738248541145,0.8076,3265.3,3264.5,0.55]
[1738248541351,3.06349,3264.3,3264.0,4.23907646]
[1738248541487,3.06349,3264.3,3263.9,0.22848175]
[1738248541712,3.06372,3264.1,3263.9,0.22848175]
[1738248541887,3.06372,3264.0,3263.9,0.22848175]
[1738248543405,3.06372,3264.0,3263.5,0.55]
[1738248543406,3.06362,3264.2,3263.8,0.55]
[1738248543606,3.87079,3264.6,3263.9,3.83781]
[1738248543929,3.81914,3265.0,3264.0,3.49091239]
[1738248544240,3.06302,3264.8,3264.3,0.55]
[1738248544406,3.06315,3264.7,3264.1,3.06363]
[1738248544607,3.06315,3264.7,3264.2,0.55]
[1738248544937,3.06312,3264.7,3264.2,0.55]
[1738248545312,3.06312,3264.7,3264.2,0.83562174]
[1738248545807,3.06288,3264.9,3264.3,3.06342]
[1738248546012,3.06288,3264.9,3264.4,0.55]
[1738248546336,0.8051,3265.3,3264.3,3.78252735]
[1738248546337,3.06256,3265.3,3264.9,0.55]
[1738248546495,3.06241,3265.4,3264.9,0.55]
[1738248546852,3.06253,3265.3,3264.9,0.55]
[1738248546993,3.06261,3265.2,3264.9,0.55]
[1738248547195,0.62783073,3265.6,3264.9,0.55]
[1738248547196,0.62783073,3265.6,3265.2,0.55]
[1738248547535,3.06175,3266.1,3265.0,1.19832765]
[1738248547697,3.06229,3265.6,3265.0,3.86003]
[1738248547898,3.06218,3265.7,3265.1,3.61265]
[1738248548232,3.06222,3265.6,3265.1,0.77848175]
[1738248548438,3.06249,3265.4,3265.1,1.06410349]
[1738248548589,6.06259,3265.2,3265.1,0.51410349]
[1738248548794,8.052547,3265.2,3265.1,0.51410349]
[1738248549427,8.052547,3265.2,3265.1,0.28562174]
[1738248549599,8.65731782,3265.2,3265.1,0.28562174]
[1738248549800,3.0632,3264.6,3264.1,0.28562174]
[1738248550002,3.06345,3264.3,3264.1,0.28562174]
[1738248550229,3.06282,3265.0,3264.1,0.28562174]
[1738248550434,3.06338,3264.4,3264.2,0.55]
[1738248550631,3.06298,3264.8,3264.2,7.38108646]
[1738248550817,4.37597082,3265.2,3264.2,6.52377646]
[1738248550818,3.06295,3264.9,3264.2,6.52377646]
[1738248551017,3.06269,3265.1,3264.3,3.6134]
[1738248551214,3.06269,3265.1,3264.5,0.55]
[1738248551818,3.06291,3264.9,3264.5,0.55]
[1738248552349,3.06298,3264.8,3264.5,0.55]
[1738248552525,3.06316,3264.6,3264.4,0.22816134]
[1738248552714,3.06325,3264.5,3264.4,0.22816134]
[1738248552920,3.06325,3264.5,3264.4,1.06345779]
[1738248553326,3.06322,3264.6,3264.4,1.06345779]
[1738248553706,3.06325,3264.5,3264.4,1.06345779]
[1738248553899,3.06325,3264.5,3264.4,0.83529645]
[1738248554542,3.06325,3264.5,3264.4,0.55]
[1738248555030,3.68549703,3265.4,3264.4,0.55]
[1738248555031,0.8326,3265.6,3264.5,1.3298]
[1738248555232,3.0621,3265.8,3265.2,0.7562]
[1738248555537,0.9237596,3266.7,3265.5,3.46027646]
[1738248556055,0.9237596,3266.7,3265.7,3.06205]
[1738248556056,3.06143,3266.5,3265.7,3.06205]
[1738248556217,3.2283696,3266.7,3266.1,3.06171]
[1738248556406,0.1671596,3266.7,3265.8,3.86168]
[1738248556606,3.2284096,3266.7,3265.9,0.386168]
[1738248556843,3.0613,3266.6,3265.9,3.448108]
[1738248557163,3.0613,3266.6,3266.0,3.61181]
[1738248557461,0.1671596,3266.7,3266.2,0.55]
[1738248558073,0.1671596,3266.7,3266.5,0.55]
[1738248558364,0.1671596,3266.7,3266.4,0.55]
[1738248558576,0.1671596,3266.7,3266.4,0.3273]
[1738248558717,0.1671596,3266.7,3266.5,3.84791]
[1738248558921,0.1671596,3266.7,3266.6,3.06128]
[1738248559369,0.1671596,3266.7,3266.6,3.87849007]
[1738248559578,0.1671596,3266.7,3266.6,3.84788]
[1738248560644,0.1671596,3266.7,3266.6,4.39788]
[1738248560843,0.1671596,3266.7,3266.6,5.82373215]
[1738248561258,0.1671596,3266.7,3266.6,5.85434044]
[1738248561462,0.1671596,3266.7,3266.6,8.86184044]
[1738248561642,0.1671596,3266.7,3266.6,8.83123215]
[1738248562649,0.7603,3269.0,3267.6,0.7579]
[1738248562852,3.05987,3268.2,3267.6,0.7579]
[1738248563051,3.0598,3268.2,3267.7,0.55]
[1738248563300,3.05962,3268.4,3267.7,0.55]
[1738248563574,3.05976,3268.3,3267.7,0.55]
[1738248563735,3.05976,3268.3,3267.2,6.52097646]
[1738248563736,3.06013,3267.9,3267.2,0.7579]
[1738248564075,3.06026,3267.7,3267.2,0.7579]
[1738248564277,3.06013,3267.9,3267.3,0.55]
[1738248564688,3.06021,3267.8,3267.3,0.55]
[1738248564866,0.612034,3267.8,3267.3,0.55]
[1738248565182,3.05978,3268.2,3266.8,7.35322646]
[1738248565342,3.06038,3267.6,3267.0,0.55]
[1738248565536,3.06046,3267.5,3267.0,0.55]
[1738248565733,3.06074,3267.2,3266.4,0.8319]
[1738248566036,3.81323,3267.6,3267.0,3.46027646]
[1738248566238,3.06025,3267.7,3267.0,6.52118646]
[1738248566478,0.306025,3267.6,3267.0,6.52118646]
[1738248566685,1.37364854,3267.9,3267.1,3.61074]
[1738248566686,3.06021,3267.8,3267.1,3.61074]
[1738248566863,3.06021,3267.8,3267.3,0.55]
[1738248567182,3.06027,3267.7,3267.3,0.55]
[1738248567386,3.81295,3267.9,3267.3,0.55]
[1738248567538,3.05999,3268.0,3267.3,0.55]
[1738248567539,0.687294,3267.8,3267.3,0.55]
[1738248567740,3.67256934,3268.2,3267.3,0.55]
[1738248567941,3.06026,3267.7,3267.3,0.55]
[1738248568170,0.61644485,3269.0,3267.7,0.5575]
[1738248568349,3.05908,3269.0,3268.4,0.55]
[1738248568559,3.05896,3269.1,3268.4,3.60958]
[1738248568749,3.388356,3269.1,3268.6,0.55]
[1738248568981,3.05896,3269.1,3268.6,0.55]
[1738248569288,4.46349122,3269.4,3268.7,0.55]
[1738248569289,3.05875,3269.4,3268.7,0.55]
[1738248569642,3.05878,3269.3,3268.7,0.55]
[1738248569850,3.05878,3269.3,3268.4,3.05957]
[1738248569851,3.05878,3269.3,3268.5,3.60941]
[1738248570047,3.05878,3269.3,3268.7,3.05931]
[1738248570272,3.05878,3269.3,3268.8,0.55]
[1738248570479,3.2253496,3270.0,3269.3,3.05866]
[1738248570681,3.05846,3269.7,3269.1,3.46027646]
[1738248570834,0.1671596,3270.0,3268.5,0.8188]
[1738248571043,3.05915,3268.9,3268.5,0.8188]
[1738248571270,3.05945,3268.6,3268.0,0.32072815]
[1738248571577,3.05945,3268.6,3268.1,0.55]
[1738248571789,3.05949,3268.6,3268.1,0.55]
[1738248571986,3.365195,3268.8,3268.1,3.60987]
[1738248572149,3.05938,3268.7,3268.1,0.55]
[1738248572588,3.05929,3268.8,3268.1,3.60987]
[1738248572793,3.0594,3268.7,3268.1,0.55]
[1738248573117,0.8305,3269.3,3268.3,6.51987646]
[1738248573400,3.05909,3269.0,3268.5,0.55]
[1738248573698,3.05908,3269.0,3268.5,0.55]
[1738248573999,3.05894,3269.1,3268.5,3.60949]
[1738248574178,3.05906,3269.0,3268.5,0.55]
[1738248574361,3.05914,3268.9,3268.5,0.55]
[1738248574572,3.05894,3269.1,3268.5,0.55]
[1738248574893,3.05832,3269.8,3269.0,3.05902]
[1738248575047,3.2253496,3270.0,3269.4,0.55]
[1738248575250,3.2253496,3270.0,3269.6,0.7619]
[1738248575251,0.1671596,3270.0,3269.6,0.7619]
[1738248575449,0.1671596,3270.0,3269.8,3.60821]
[1738248575690,0.1671596,3270.0,3269.9,7.06846646]
[1738248576196,0.1671596,3270.0,3269.9,10.07596646]
[1738248576404,0.1671596,3270.0,3269.9,10.39378687]
[1738248576558,0.1671596,3270.0,3269.9,11.70181613]
[1738248576896,0.7689,3272.1,3270.8,0.7858]
[1738248577114,0.7689,3272.1,3270.9,0.55]
[1738248577115,3.05703,3271.2,3270.9,0.55]
[1738248577271,3.05754,3270.6,3270.1,0.7777]
[1738248577457,3.05725,3271.0,3270.1,3.83562]
[1738248577663,3.05746,3270.7,3270.1,0.7777]
[1738248577972,3.362995,3270.9,3270.1,0.7777]
[1738248578210,3.05802,3270.1,3269.9,0.31782041]
[1738248578418,3.05735,3270.8,3270.0,3.05809]
[1738248578708,3.42776969,3272.0,3269.9,0.31782041]
[1738248578709,0.8135,3271.6,3270.1,0.33759104]
[1738248578911,0.243,3271.5,3269.9,0.31782041]
[1738248579088,3.05698,3271.2,3269.9,0.31782041]
[1738248579282,3.05754,3270.6,3269.9,0.31782041]
[1738248579494,3.243,3271.5,3269.9,0.31782041]
[1738248579495,3.05724,3271.0,3269.9,0.31782041]
[1738248579699,3.0581,3270.0,3269.9,0.31782041]
[1738248580521,3.8598,3270.0,3269.9,0.31782041]
[1738248580932,4.1028,3270.0,3269.9,0.31782041]
[1738248581089,3.0581,3270.0,3269.9,0.31782041]
[1738248581483,3.05797,3270.2,3269.9,0.31782041]
[1738248581785,3.05782,3270.3,3269.9,0.31782041]
[1738248582019,3.05773,3270.4,3269.9,0.31782041]
[1738248582199,0.243,3270.6,3269.9,0.31782041]
[1738248582434,3.0581,3270.0,3269.9,0.31782041]
[1738248582783,3.05789,3270.3,3269.9,0.31782041]
[1738248582983,0.8181,3270.8,3269.9,0.31782041]
[1738248583275,3.05754,3270.6,3269.9,0.31782041]
[1738248583396,3.05736,3270.8,3269.9,0.31782041]
[1738248583590,0.0075,3272.0,3269.9,0.31782041]
[1738248583591,3.05717,3271.0,3270.0,0.55]
[1738248583789,3.05688,3271.3,3270.5,3.0576]
[1738248584035,3.05706,3271.2,3270.6,0.30576]
[1738248584220,3.05715,3271.1,3270.3,3.60782]
[1738248584415,3.05719,3271.0,3270.2,0.7998]
[1738248584642,3.05719,3271.0,3270.3,3.05778]
[1738248584949,3.86529,3271.8,3270.2,0.7998]
[1738248584950,3.05651,3271.7,3270.2,0.7998]
[1738248585107,3.05731,3270.9,3270.2,0.7998]
[1738248585308,0.8088,3271.8,3270.2,0.7998]
[1738248585309,3.05709,3271.1,3270.2,0.7998]
[1738248585504,3.05721,3271.0,3270.2,3.85763]
[1738248585706,3.05752,3270.7,3270.2,0.7998]
[1738248585906,3.05743,3270.8,3270.2,0.7998]
[1738248586301,3.05728,3270.9,3270.2,0.7998]
[1738248586501,3.05764,3270.5,3269.9,0.31782041]
[1738248586747,3.0581,3270.0,3269.9,0.31782041]
[1738248586952,0.611604,3270.0,3269.9,0.31782041]
[1738248587243,0.611604,3270.0,3267.9,0.8322]
[1738248587244,3.05969,3268.3,3267.9,0.8322]
[1738248587444,3.05996,3268.1,3267.9,0.8322]
[1738248587803,0.243,3268.6,3267.5,0.8126]
[1738248588004,3.06035,3267.6,3267.5,0.8126]
[1738248588201,3.06052,3267.5,3267.1,4.006867]
[1738248588404,3.06065,3267.3,3267.1,4.006867]
[1738248588631,3.06072,3267.2,3267.1,0.8126]
[1738248588855,3.06065,3267.3,3267.1,0.8126]
[1738248589019,0.14872999,3267.5,3267.1,0.8126]
[1738248589219,3.06028,3267.7,3267.1,1.199945]
[1738248589416,3.0604,3267.6,3267.1,1.199945]
[1738248589649,3.06083,3267.1,3266.3,3.83992]
[1738248589861,3.06091,3267.0,3266.6,0.7784]
[1738248590150,0.60459647,3267.2,3266.6,0.7784]
[1738248590369,3.06035,3267.6,3266.6,0.7784]
[1738248590524,3.06071,3267.3,3266.6,0.7784]
[1738248590724,3.06014,3267.9,3266.6,1.162378]
[1738248590929,3.2101953,3268.1,3267.3,3.06062]
[1738248591235,3.06015,3267.9,3267.0,3.06082]
[1738248591444,1.40364306,3268.4,3266.8,3.87152]
[1738248591445,3.06037,3267.6,3266.8,3.87152]
[1738248591627,0.61794621,3267.2,3266.8,0.8105]
[1738248592025,3.06011,3267.9,3267.1,3.06081]
[1738248592208,4.02594206,3269.3,3267.1,3.06081]
[1738248592209,0.8034,3268.8,3267.2,0.03810324]
[1738248592448,3.30408,3269.0,3267.2,0.03810324]
[1738248592449,0.60735215,3268.0,3267.5,3.06044]
[1738248592757,0.60735215,3268.0,3267.4,0.7739]
[1738248592758,3.06044,3267.5,3267.0,0.8109]
[1738248593054,3.06064,3267.3,3267.0,0.8109]
[1738248593208,3.06053,3267.4,3267.0,0.8109]
[1738248593405,3.06043,3267.6,3267.0,0.8109]
[1738248593715,3.05999,3268.0,3267.0,4.258989]
[1738248594040,0.61335341,3267.7,3267.1,3.06079]
[1738248594208,0.61335341,3267.7,3267.3,3.06054]
[1738248594414,0.61335341,3267.7,3267.2,3.06064]
[1738248594639,0.61335341,3267.7,3267.4,3.06051]
[1738248594906,0.60692349,3268.0,3267.5,4.172641]
[1738248595106,0.60692349,3268.0,3267.5,1.112251]
[1738248595352,0.60692349,3268.0,3267.5,0.8062]
[1738248595353,3.06027,3267.7,3267.5,0.8062]
[1738248595558,3.06035,3267.6,3267.1,0.8062]
[1738248595913,3.06085,3267.1,3266.7,0.8062]
[1738248596617,3.06062,3267.4,3266.7,3.86737]
[1738248596954,3.06079,3267.2,3266.7,0.8062]
[1738248597117,3.06072,3267.2,3266.7,0.8062]
[1738248597310,3.0605,3267.5,3266.7,0.8062]
[1738248597621,3.06107,3266.9,3266.2,0.8162]
[1738248597953,3.0611,3266.8,3266.2,0.8162]
[1738248598150,3.0611,3266.8,3266.2,3.87785]
[1738248598311,0.8012,3267.2,3266.2,0.8162]
[1738248598510,3.06126,3266.7,3266.2,0.8162]
[1738248599046,3.66804001,3266.8,3266.2,1.204004]
[1738248599253,3.66803001,3266.8,3266.2,0.8162]
[1738248599453,3.06068,3267.3,3266.5,3.06136]
[1738248599758,0.90759014,3267.4,3266.5,3.06134]
[1738248600059,3.0609,3267.1,3266.3,3.06155]
[1738248600354,0.90759014,3267.4,3266.2,0.8162]
[1738248600515,3.06091,3267.0,3266.4,3.06145]
[1738248600714,3.06091,3267.0,3266.3,3.06155]
[1738248600928,3.06091,3267.0,3266.3,3.44353568]
[1738248601323,3.06074,3267.2,3266.4,3.06146]
[1738248601524,0.90759014,3267.4,3266.7,0.7826]
[1738248601525,0.60154014,3267.4,3266.7,0.7826]
[1738248601756,3.06026,3267.7,3267.0,3.0609]
[1738248601957,3.06008,3267.9,3267.1,3.06074]
[1738248602112,3.05989,3268.1,3267.4,3.0605]
[1738248602314,0.62601874,3267.9,3267.5,0.7954]
[1738248602639,3.05984,3268.2,3267.6,3.06033]
[1738248603015,3.05962,3268.4,3267.6,3.06033]
[1738248603211,0.62503829,3268.2,3267.6,3.06033]
[1738248603411,3.05968,3268.4,3267.7,0.385573]
[1738248603848,3.05968,3268.4,3267.8,3.06015]
[1738248604154,3.05947,3268.6,3267.8,3.06015]
[1738248604653,3.05967,3268.4,3267.7,0.385573]
[1738248604857,0.798,3269.1,3267.8,0.03059711]
[1738248605156,3.05943,3268.6,3268.0,3.0599]
[1738248605470,3.05943,3268.6,3268.1,0.7749]
[1738248605816,3.05954,3268.5,3268.1,0.7749]
[1738248606016,3.05962,3268.4,3268.1,0.7749]
[1738248606260,0.61829768,3269.0,3268.2,3.98382699]
[1738248606565,0.1,3270.6,3269.1,0.7601]
[1738248606566,0.832,3270.2,3269.1,0.7601]
[1738248606718,3.65681991,3270.1,3269.1,0.7601]
[1738248607064,3.65681991,3270.1,3268.6,0.7601]
[1738248607065,3.05932,3268.7,3268.6,0.7601]
[1738248607272,3.0592,3268.9,3268.1,0.61694956]
[1738248607273,3.05963,3268.4,3268.1,0.61694956]
[1738248607556,3.05951,3268.5,3267.9,0.7601]
[1738248607757,3.06002,3268.0,3267.6,0.7962]
[1738248608466,3.06025,3267.7,3267.1,3.06081]
[1738248608616,3.06025,3267.7,3267.2,0.8125]
[1738248608818,3.06023,3267.8,3267.2,0.8125]
[1738248609034,3.06056,3267.4,3267.2,0.8125]
[1738248609461,3.06041,3267.6,3267.2,0.8125]
[1738248609679,3.05993,3268.1,3267.2,0.8125]
[1738248609818,3.06039,3267.6,3267.2,0.8125]
[1738248610166,3.06017,3267.8,3267.2,0.8125]
[1738248610457,0.305951,3268.5,3267.2,0.8125]
[1738248610458,3.05942,3268.6,3267.9,3.06]
[1738248610666,3.05953,3268.5,3267.8,3.06015]
[1738248610847,3.05923,3268.8,3267.5,0.03059806]
[1738248611023,1.38476596,3269.2,3267.7,0.5575]
[1738248611219,3.05894,3269.1,3267.9,0.7938]
[1738248611416,3.0591,3269.0,3268.0,3.09056404]
[1738248611619,3.05914,3268.9,3268.2,3.05971]
[1738248611867,3.05914,3268.9,3268.0,3.05997]
[1738248612020,3.0596,3268.4,3267.9,0.7938]
[1738248612220,0.7933,3269.0,3267.9,0.7938]
[1738248612548,0.7933,3269.0,3267.4,0.7938]
[1738248612549,3.05999,3268.0,3267.4,0.7938]
[1738248613068,3.06044,3267.5,3267.4,0.7938]
[1738248613419,3.05997,3268.0,3266.9,0.7938]
[1738248613620,3.05997,3268.0,3266.5,0.7938]